bitfinex-derivatives/quotes_BNBF0:USTF0_20250115
["timestamp","ask_amount","ask_price","bid_price","bid_amount"]
[1736982728620,0.74332678,713.18,712.51,2.03569781]
[1736982728820,0.74332678,713.17,712.51,2.03569781]
[1736982729016,0.74332678,713.16,712.51,2.03569781]
[1736982729321,0.74332678,713.15,712.51,2.03569781]
[1736982729619,0.74332678,713.14,712.51,2.03569781]
[1736982729815,0.74332678,713.13,712.51,2.03569781]
[1736982730018,0.74332678,713.12,712.51,2.03569781]
[1736982730216,0.74332678,713.11,712.51,2.03569781]
[1736982730414,0.74332678,713.1,712.51,2.03569781]
[1736982730717,0.74332678,713.09,712.51,2.03569781]
[1736982730915,0.74332678,713.08,712.51,2.03569781]
[1736982731119,1.04937866,713.42,712.51,2.03569781]
[1736982731120,0.74332678,713.07,712.51,2.03569781]
[1736982731420,0.74332678,713.06,712.51,2.03569781]
[1736982731621,0.74332678,713.05,712.51,2.03569781]
[1736982731815,0.74332678,713.04,712.51,2.03569781]
[1736982732018,0.74332678,713.03,712.51,2.03569781]
[1736982732318,0.74332678,713.02,712.51,2.03569781]
[1736982732620,0.74332678,713.01,712.51,2.03569781]
[1736982732815,1.04937866,713.44,712.51,2.03569781]
[1736982733019,1.00094534,713.43,712.51,2.03569781]
[1736982733218,0.74327639,713.42,712.51,2.03569781]
[1736982733422,0.74327639,713.41,712.51,2.03569781]
[1736982733621,0.74327639,713.4,712.51,2.03569781]
[1736982733820,0.74327639,713.39,712.51,2.03569781]
[1736982734020,0.74327639,713.38,712.51,2.03569781]
[1736982734220,0.74327639,713.37,712.51,2.03569781]
[1736982734420,0.74327639,713.36,712.51,2.03569781]
[1736982734615,0.74327639,713.35,712.51,2.03569781]
[1736982734820,0.74327639,713.34,712.51,2.03569781]
[1736982735019,0.74327639,713.33,712.51,2.03569781]
[1736982735222,0.74327639,713.32,712.51,2.03569781]
[1736982735522,0.74327639,713.31,712.51,2.03569781]
[1736982735715,0.74327639,713.3,712.51,2.03569781]
[1736982735915,0.74327639,713.29,712.51,2.03569781]
[1736982736120,0.74327639,713.28,712.51,2.03569781]
[1736982736319,0.74327639,713.27,712.51,2.03569781]
[1736982736519,0.74327639,713.26,712.51,2.03569781]
[1736982736721,0.74327639,713.25,712.51,2.03569781]
[1736982736921,0.74327639,713.24,712.51,2.03569781]
[1736982737118,0.74327639,713.23,712.51,2.03569781]
[1736982737323,0.74327639,713.22,712.51,2.03569781]
[1736982737522,0.74327639,713.21,712.51,2.03569781]
[1736982737721,0.74327639,713.2,712.51,2.03569781]
[1736982737925,0.74327639,713.19,712.51,2.03569781]
[1736982738123,0.74327639,713.18,712.51,2.03569781]
[1736982738322,0.74327639,713.17,712.51,2.03569781]
[1736982738530,0.74327639,713.16,712.51,2.03569781]
[1736982738728,0.74327639,713.15,712.51,2.03569781]
[1736982738926,0.74327639,713.14,712.51,2.03569781]
[1736982739124,0.74327639,713.13,712.51,2.03569781]
[1736982739323,0.74327639,713.12,712.51,2.03569781]
[1736982739525,0.74327639,713.11,712.51,2.03569781]
[1736982739725,0.74327639,713.1,712.51,2.03569781]
[1736982739923,0.74327639,713.09,712.51,2.03569781]
[1736982740129,0.74327639,713.08,712.51,2.03569781]
[1736982740330,1.04937866,713.52,712.51,2.03569781]
[1736982740629,0.74321893,713.51,712.51,2.03569781]
[1736982740825,0.74321893,713.5,712.51,2.03569781]
[1736982741030,0.74321893,713.49,712.51,2.03569781]
[1736982741229,0.74321893,713.48,712.51,2.03569781]
[1736982741431,0.74321893,713.47,712.51,2.03569781]
[1736982741624,0.74321893,713.46,712.51,2.03569781]
[1736982741828,0.74321893,713.45,712.51,2.03569781]
[1736982742030,0.74321893,713.44,712.51,2.03569781]
[1736982742230,0.74321893,713.43,712.51,2.03569781]
[1736982742527,0.74321893,713.42,712.51,2.03569781]
[1736982742728,0.74321893,713.41,712.51,2.03569781]
[1736982742922,0.74321893,713.4,712.51,2.03569781]
[1736982743127,0.74321893,713.39,712.51,2.03569781]
[1736982743331,0.74321893,713.38,712.51,2.03569781]
[1736982743528,0.74321893,713.37,712.51,2.03569781]
[1736982743728,0.74321893,713.36,712.51,2.03569781]
[1736982743929,0.74321893,713.35,712.51,2.03569781]
[1736982744126,0.74321893,713.34,712.51,2.03569781]
[1736982744327,0.74321893,713.33,712.51,2.03569781]
[1736982744529,0.74321893,713.32,712.51,2.03569781]
[1736982744727,0.74321893,713.31,712.51,2.03569781]
[1736982744927,0.74321893,713.3,712.51,2.03569781]
[1736982745131,0.74321893,713.29,712.51,2.03569781]
[1736982745325,0.74321893,713.28,712.51,2.03569781]
[1736982745529,0.74321893,713.27,712.51,2.03569781]
[1736982745730,0.74321893,713.26,712.51,2.03569781]
[1736982746031,0.74321893,713.25,712.51,2.03569781]
[1736982746334,0.74321893,713.24,712.51,2.03569781]
[1736982746633,0.74321893,713.23,712.51,2.03569781]
[1736982746835,0.74321893,713.22,712.51,2.03569781]
[1736982747030,0.74321893,713.21,712.51,2.03569781]
[1736982747332,0.74321893,713.2,712.51,2.03569781]
[1736982747532,1.04937866,713.42,712.51,2.03569781]
[1736982747533,0.74321893,713.19,712.51,2.03569781]
[1736982747833,0.74367138,713.18,712.51,2.03569781]
[1736982748133,0.74367138,713.17,712.51,2.03569781]
[1736982748432,0.74367138,713.16,712.51,2.03569781]
[1736982748627,0.74367138,713.15,712.51,2.03569781]
[1736982748828,0.74367138,713.14,712.51,2.03569781]
[1736982749033,0.74367138,713.13,712.51,2.03569781]
[1736982749232,0.74367138,713.12,712.51,2.03569781]
[1736982749428,0.74367138,713.11,712.51,2.03569781]
[1736982749632,0.74371306,713.1,712.51,2.03569781]
[1736982749833,0.74371306,713.09,712.51,2.03569781]
[1736982750039,0.74371306,713.08,712.51,2.03569781]
[1736982750227,0.74371306,713.07,712.51,2.03569781]
[1736982750433,0.74371306,713.06,712.51,2.03569781]
[1736982750735,0.74371306,713.05,712.51,2.03569781]
[1736982750937,0.74371306,713.04,712.51,2.03569781]
[1736982751237,0.74371306,713.03,712.51,2.03569781]
[1736982751435,0.74371306,713.02,712.51,2.03569781]
[1736982751631,0.74371306,713.01,712.51,2.03569781]
[1736982751835,0.74371306,713.0,712.51,2.03569781]
[1736982752037,0.74371306,712.99,712.51,2.03569781]
[1736982752235,0.74371306,712.98,712.51,2.03569781]
[1736982752430,1.04937866,713.44,712.51,2.03569781]
[1736982752631,0.74370711,713.43,712.51,2.03569781]
[1736982752830,1.04937866,713.48,712.51,2.03569781]
[1736982752831,0.74370711,713.42,712.51,2.03569781]
[1736982753038,0.74370711,713.41,712.51,2.03569781]
[1736982753235,0.74370711,713.4,712.51,2.03569781]
[1736982753430,0.74370711,713.39,712.51,2.03569781]
[1736982753634,0.74370711,713.38,712.51,2.03569781]
[1736982753838,0.74370711,713.37,712.51,2.03569781]
[1736982754033,0.74370711,713.36,712.51,2.03569781]
[1736982754231,0.74370711,713.35,712.51,2.03569781]
[1736982754434,0.74370711,713.34,712.51,2.03569781]
[1736982754629,0.74370711,713.33,712.51,2.03569781]
[1736982754833,0.74370711,713.32,712.51,2.03569781]
[1736982755030,0.74370711,713.31,712.51,2.03569781]
[1736982755234,0.74370711,713.3,712.51,2.03569781]
[1736982755431,0.74370711,713.29,712.51,2.03569781]
[1736982755632,0.74370711,713.28,712.51,2.03569781]
[1736982755835,0.74370711,713.27,712.51,2.03569781]
[1736982756038,0.74370711,713.26,712.51,2.03569781]
[1736982756239,0.74370711,713.25,712.51,2.03569781]
[1736982756537,0.74370711,713.24,712.51,2.03569781]
[1736982756733,0.74370711,713.23,712.51,2.03569781]
[1736982756936,0.28016697,713.86,712.51,2.03569781]
[1736982756937,0.74370711,713.22,712.51,2.03569781]
[1736982757136,0.74370711,713.21,712.51,2.03569781]
[1736982757337,0.74370711,713.2,712.51,2.03569781]
[1736982757537,0.74370711,713.19,712.51,2.03569781]
[1736982757737,0.74370711,713.18,712.51,2.03569781]
[1736982757932,0.74370711,713.17,712.51,2.03569781]
[1736982758133,0.74370711,713.16,712.51,2.03569781]
[1736982758338,0.74370711,713.15,712.51,2.03569781]
[1736982758539,0.74370711,713.14,712.51,2.03569781]
[1736982758739,0.74370711,713.13,712.51,2.03569781]
[1736982759042,0.74370711,713.12,712.51,2.03569781]
[1736982759234,0.74370711,713.11,712.51,2.03569781]
[1736982759438,0.74370711,713.1,712.51,2.03569781]
[1736982759639,0.74370711,713.09,712.51,2.03569781]
[1736982759840,0.74370711,713.08,712.51,2.03569781]
[1736982760046,0.74370711,713.07,712.51,2.03569781]
[1736982760343,0.74370711,713.06,712.51,2.03569781]
[1736982760543,0.74370711,713.05,712.51,2.03569781]
[1736982760746,0.74370711,713.04,712.51,2.03569781]
[1736982760939,0.74370711,713.03,712.51,2.03569781]
[1736982761142,0.74370711,713.02,712.51,2.03569781]
[1736982761342,0.74370711,713.01,712.51,2.03569781]
[1736982761538,0.74370711,713.0,712.51,2.03569781]
[1736982761745,1.04937866,713.85,712.51,2.03569781]
[1736982761940,0.74369116,713.84,712.51,2.03569781]
[1736982762139,0.74369116,713.83,712.51,2.03569781]
[1736982762340,0.74369116,713.82,712.51,2.03569781]
[1736982762540,1.04937866,713.85,712.51,2.03569781]
[1736982762541,0.74369116,713.81,712.51,2.03569781]
[1736982762843,1.02388168,713.8,712.51,2.03569781]
[1736982763042,1.02388561,713.79,712.51,2.03569781]
[1736982763242,0.74369116,713.78,712.51,2.03569781]
[1736982763547,1.02389346,713.77,712.51,2.03569781]
[1736982763746,6.27670823,715.38,712.51,2.03569781]
[1736982763747,1.02389739,713.76,712.51,2.03569781]
[1736982763940,0.74369116,713.75,712.51,2.03569781]
[1736982764141,0.74369116,713.74,712.51,2.03569781]
[1736982764343,0.74369116,713.73,712.51,2.03569781]
[1736982764540,0.74369116,713.72,712.51,2.03569781]
[1736982764747,0.74369116,713.71,712.51,2.03569781]
[1736982764945,0.28020623,713.76,712.51,2.03569781]
[1736982764946,0.74369116,713.7,712.51,2.03569781]
[1736982765148,0.74369116,713.69,712.51,2.03569781]
[1736982765449,0.28020623,713.76,712.51,2.03569781]
[1736982766151,0.74370407,713.75,712.51,2.03569781]
[1736982766351,0.74370407,713.74,712.51,2.03569781]
[1736982766550,0.74370407,713.73,712.51,2.03569781]
[1736982766748,0.74370407,713.72,712.51,2.03569781]
[1736982766950,0.74370407,713.71,712.51,2.03569781]
[1736982767251,0.74370407,713.7,712.51,2.03569781]
[1736982767447,0.74369874,713.69,712.51,2.03569781]
[1736982767650,0.74369874,713.68,712.51,2.03569781]
[1736982767847,0.74369874,713.67,712.51,2.03569781]
[1736982768050,0.74369874,713.66,712.51,2.03569781]
[1736982768248,0.74369874,713.65,712.51,2.03569781]
[1736982768448,0.74369874,713.64,712.51,2.03569781]
[1736982768653,0.74369874,713.63,712.51,2.03569781]
[1736982768848,0.74369874,713.62,712.51,2.03569781]
[1736982769048,0.74369874,713.61,712.51,2.03569781]
[1736982769248,0.28020623,713.76,712.51,2.03569781]
[1736982769452,0.74366954,713.75,712.51,2.03569781]
[1736982769651,0.74366954,713.74,712.51,2.03569781]
[1736982769850,0.74372466,713.73,712.51,2.03569781]
[1736982770053,0.74372466,713.72,712.51,2.03569781]
[1736982770252,0.74372466,713.71,712.51,2.03569781]
[1736982770555,0.74372466,713.7,712.51,2.03569781]
[1736982770750,0.74372466,713.69,712.51,2.03569781]
[1736982770954,0.74372466,713.68,712.51,2.03569781]
[1736982771257,0.74372466,713.67,712.51,2.03569781]
[1736982771456,0.74372466,713.66,712.51,2.03569781]
[1736982771658,0.74372466,713.65,712.51,2.03569781]
[1736982771852,0.74372466,713.64,712.51,2.03569781]
[1736982772052,0.74372466,713.63,712.51,2.03569781]
[1736982772250,0.74372466,713.62,712.51,2.03569781]
[1736982772454,1.00136809,713.61,712.51,2.03569781]
[1736982772659,1.00136809,713.6,712.51,2.03569781]
[1736982772855,1.00136809,713.59,712.51,2.03569781]
[1736982773053,1.00136809,713.58,712.51,2.03569781]
[1736982773259,0.74372466,713.57,712.51,2.03569781]
[1736982773452,0.74372466,713.56,712.51,2.03569781]
[1736982773658,0.74372466,713.55,712.51,2.03569781]
[1736982773957,0.74372466,713.54,712.51,2.03569781]
[1736982774156,0.74377392,713.53,712.51,2.03569781]
[1736982774358,0.74377392,713.52,712.51,2.03569781]
[1736982774657,0.74377392,713.51,712.51,2.03569781]
[1736982774961,0.74377392,713.5,712.51,2.03569781]
[1736982775156,0.74377392,713.49,712.51,2.03569781]
[1736982775357,0.74377392,713.48,712.51,2.03569781]
[1736982775656,0.74377392,713.47,712.51,2.03569781]
[1736982775852,0.74377392,713.46,712.51,2.03569781]
[1736982776158,0.74377392,713.45,712.51,2.03569781]
[1736982776358,1.04937866,713.55,712.51,2.03569781]
[1736982776359,0.74377392,713.44,712.51,2.03569781]
[1736982776659,0.28020623,713.76,712.51,2.03569781]
[1736982776660,0.74377392,713.43,712.51,2.03569781]
[1736982776857,0.74377392,713.42,712.51,2.03569781]
[1736982777059,0.74377392,713.41,712.51,2.03569781]
[1736982777257,0.74373903,713.4,712.51,2.03569781]
[1736982777454,0.74373903,713.39,712.51,2.03569781]
[1736982777658,0.74373903,713.38,712.51,2.03569781]
[1736982777862,0.74374742,713.37,712.51,2.03569781]
[1736982778061,0.74374742,713.36,712.51,2.03569781]
[1736982778260,0.74374742,713.35,712.51,2.03569781]
[1736982778461,0.74374742,713.34,712.51,2.03569781]
[1736982778662,0.74374742,713.33,712.51,2.03569781]
[1736982778863,0.74374742,713.32,712.51,2.03569781]
[1736982779061,0.74374742,713.31,712.51,2.03569781]
[1736982779264,0.74372206,713.3,712.51,2.03569781]
[1736982779562,0.74372206,713.29,712.51,2.03569781]
[1736982779863,0.74372206,713.28,712.51,2.03569781]
[1736982780162,0.74372206,713.27,712.51,2.03569781]
[1736982780357,0.74372206,713.26,712.51,2.03569781]
[1736982780564,0.74372206,713.25,712.51,2.03569781]
[1736982780755,0.74372206,713.24,712.51,2.03569781]
[1736982780957,0.74372206,713.23,712.51,2.03569781]
[1736982781159,0.74372206,713.22,712.51,2.03569781]
[1736982781362,0.74372206,713.21,712.51,2.03569781]
[1736982781557,0.74372206,713.2,712.51,2.03569781]
[1736982781761,0.74372206,713.19,712.51,2.03569781]
[1736982782062,0.74372206,713.18,712.51,2.03569781]
[1736982782363,0.74372206,713.17,712.51,2.03569781]
[1736982782563,0.74372206,713.16,712.51,2.03569781]
[1736982782756,0.74372206,713.15,712.51,2.03569781]
[1736982782960,0.74372206,713.14,712.51,2.03569781]
[1736982783159,0.74371947,713.13,712.51,2.03569781]
[1736982783362,0.74371947,713.12,712.51,2.03569781]
[1736982783563,0.74371947,713.11,712.51,2.03569781]
[1736982783764,0.74371947,713.1,712.51,2.03569781]
[1736982784064,0.74371947,713.09,712.51,2.03569781]
[1736982784267,0.74371947,713.08,712.51,2.03569781]
[1736982784468,0.74371947,713.07,712.51,2.03569781]
[1736982784663,0.74371947,713.06,712.51,2.03569781]
[1736982784862,0.74371947,713.05,712.51,2.03569781]
[1736982785067,0.74371947,713.04,712.51,2.03569781]
[1736982785262,0.74371947,713.03,712.51,2.03569781]
[1736982785461,0.74371947,713.02,712.51,2.03569781]
[1736982785661,1.04937866,713.47,712.51,2.03569781]
[1736982785861,0.74376217,713.46,712.51,2.03569781]
[1736982786165,0.74376217,713.45,712.51,2.03569781]
[1736982786468,1.04937866,713.47,712.51,2.03569781]
[1736982786469,0.74376217,713.44,712.51,2.03569781]
[1736982786662,0.74376217,713.43,712.51,2.03569781]
[1736982786864,0.74376217,713.42,712.51,2.03569781]
[1736982787067,0.74376217,713.41,712.51,2.03569781]
[1736982787262,0.74376217,713.4,712.51,2.03569781]
[1736982787569,0.74376217,713.39,712.51,2.03569781]
[1736982787868,0.74376217,713.38,712.51,2.03569781]
[1736982788070,0.74376217,713.37,712.51,2.03569781]
[1736982788271,0.74376217,713.36,712.51,2.03569781]
[1736982788469,0.74381634,713.35,712.51,2.03569781]
[1736982788671,0.74381634,713.34,712.51,2.03569781]
[1736982788864,0.74381634,713.33,712.51,2.03569781]
[1736982789169,0.74381634,713.32,712.51,2.03569781]
[1736982789368,0.74381634,713.31,712.51,2.03569781]
[1736982789670,0.74381634,713.3,712.51,2.03569781]
[1736982789871,0.74381634,713.29,712.51,2.03569781]
[1736982790072,0.74381634,713.28,712.51,2.03569781]
[1736982790273,0.74381634,713.27,712.51,2.03569781]
[1736982790571,0.74381634,713.26,712.51,2.03569781]
[1736982790766,1.04937866,713.62,712.51,2.03569781]
[1736982790971,0.74384369,713.61,712.51,2.03569781]
[1736982791164,0.74384369,713.6,712.51,2.03569781]
[1736982791365,0.74384369,713.59,712.51,2.03569781]
[1736982791567,0.74384369,713.58,712.51,2.03569781]
[1736982791769,0.74384369,713.57,712.51,2.03569781]
[1736982791969,0.74384369,713.56,712.51,2.03569781]
[1736982792169,0.74384369,713.55,712.51,2.03569781]
[1736982792372,0.74384369,713.54,712.51,2.03569781]
[1736982792664,0.74384369,713.53,712.51,2.03569781]
[1736982792866,0.74384369,713.52,712.51,2.03569781]
[1736982793170,0.74384369,713.51,712.51,2.03569781]
[1736982793368,0.74384369,713.5,712.51,2.03569781]
[1736982793572,0.74384369,713.49,712.51,2.03569781]
[1736982793873,0.74384369,713.48,712.51,2.03569781]
[1736982794079,0.74384369,713.47,712.51,2.03569781]
[1736982794273,0.74384369,713.46,712.51,2.03569781]
[1736982794474,0.74384369,713.45,712.51,2.03569781]
[1736982794675,0.74384369,713.44,712.51,2.03569781]
[1736982794975,0.74384369,713.43,712.51,2.03569781]
[1736982795176,0.74384369,713.42,712.51,2.03569781]
[1736982795475,0.74384369,713.41,712.51,2.03569781]
[1736982795676,0.74384369,713.4,712.51,2.03569781]
[1736982795875,0.74384369,713.39,712.51,2.03569781]
[1736982796075,0.74384369,713.38,712.51,2.03569781]
[1736982796271,0.74385413,713.37,712.51,2.03569781]
[1736982796473,0.74385413,713.36,712.51,2.03569781]
[1736982796670,0.74385413,713.35,712.51,2.03569781]
[1736982796976,0.74385413,713.34,712.51,2.03569781]
[1736982797176,0.74385413,713.33,712.51,2.03569781]
[1736982797370,0.74385413,713.32,712.51,2.03569781]
[1736982797572,0.74385413,713.31,712.51,2.03569781]
[1736982797770,0.74385413,713.3,712.51,2.03569781]
[1736982797975,0.74385413,713.29,712.51,2.03569781]
[1736982798272,0.74385413,713.28,712.51,2.03569781]
[1736982798478,0.74385413,713.27,712.51,2.03569781]
[1736982798776,0.74385413,713.26,712.51,2.03569781]
[1736982798971,0.74385413,713.25,712.51,2.03569781]
[1736982799178,0.74385413,713.24,712.51,2.03569781]
[1736982799376,0.74385413,713.23,712.51,2.03569781]
[1736982799572,0.74385413,713.22,712.51,2.03569781]
[1736982799771,0.74385413,713.21,712.51,2.03569781]
[1736982799975,0.74385413,713.2,712.51,2.03569781]
[1736982800175,0.74385413,713.19,712.51,2.03569781]
[1736982800375,0.74385413,713.18,712.51,2.03569781]
[1736982800571,0.74385413,713.17,712.51,2.03569781]
[1736982800776,0.74385413,713.16,712.51,2.03569781]
[1736982800976,0.74385413,713.15,712.51,2.03569781]
[1736982801177,0.74385413,713.14,712.51,2.03569781]
[1736982801480,0.74385413,713.13,712.51,2.03569781]
[1736982801683,0.74385413,713.12,712.51,2.03569781]
[1736982801884,0.74385413,713.11,712.51,2.03569781]
[1736982802183,0.74385413,713.1,712.51,2.03569781]
[1736982802383,0.74385413,713.09,712.51,2.03569781]
[1736982802578,1.04937866,713.46,712.51,2.03569781]
[1736982802579,0.74385413,713.08,712.51,2.03569781]
[1736982802777,0.74385413,713.07,712.51,2.03569781]
[1736982802982,0.74385413,713.06,712.51,2.03569781]
[1736982803178,0.74385413,713.05,712.51,2.03569781]
[1736982803482,0.74385413,713.04,712.51,2.03569781]
[1736982803684,0.74385413,713.03,712.51,2.03569781]
[1736982803882,0.74385413,713.02,712.51,2.03569781]
[1736982804183,0.74385413,713.01,712.51,2.03569781]
[1736982804385,0.74385413,713.0,712.51,2.03569781]
[1736982804586,1.04937866,713.45,712.51,2.03569781]
[1736982804785,1.04937866,713.43,712.51,2.03569781]
[1736982804986,0.74388158,713.42,712.51,2.03569781]
[1736982805185,0.74388158,713.41,712.51,2.03569781]
[1736982805384,0.74388158,713.4,712.51,2.03569781]
[1736982805585,0.74388158,713.39,712.51,2.03569781]
[1736982805781,0.74388158,713.38,712.51,2.03569781]
[1736982805987,0.74388158,713.37,712.51,2.03569781]
[1736982806288,0.74388158,713.36,712.51,2.03569781]
[1736982806481,1.04937866,713.43,712.51,2.03569781]
[1736982806681,0.74385653,713.42,712.51,2.03569781]
[1736982806885,0.74385653,713.41,712.51,2.03569781]
[1736982807085,0.74385653,713.4,712.51,2.03569781]
[1736982807283,0.74385653,713.39,712.51,2.03569781]
[1736982807587,0.74385653,713.38,712.51,2.03569781]
[1736982807783,0.74385653,713.37,712.51,2.03569781]
[1736982807989,0.74388092,713.36,712.51,2.03569781]
[1736982808183,0.74388092,713.35,712.51,2.03569781]
[1736982808387,0.74388092,713.34,712.51,2.03569781]
[1736982808588,0.74388092,713.33,712.51,2.03569781]
[1736982808782,0.74388092,713.32,712.51,2.03569781]
[1736982808982,0.74388092,713.31,712.51,2.03569781]
[1736982809184,0.74388092,713.3,712.51,2.03569781]
[1736982809384,0.74388092,713.29,712.51,2.03569781]
[1736982809589,0.74388092,713.28,712.51,2.03569781]
[1736982809789,0.74388092,713.27,712.51,2.03569781]
[1736982809993,0.74388092,713.26,712.51,2.03569781]
[1736982810190,1.04937866,713.47,712.51,2.03569781]
[1736982810591,0.28020623,713.76,712.51,2.03569781]
[1736982811699,1.04986071,713.73,712.51,2.03569781]
[1736982812288,0.74360257,713.72,712.51,2.03569781]
[1736982812488,0.74360257,713.71,712.51,2.03569781]
[1736982812690,0.74360257,713.7,712.51,2.03569781]
[1736982812985,0.74360257,713.69,712.51,2.03569781]
[1736982813189,0.74360257,713.68,712.51,2.03569781]
[1736982813385,0.28020623,713.76,712.51,2.03569781]
[1736982813386,0.74360257,713.67,712.51,2.03569781]
[1736982813692,0.74360257,713.66,712.51,2.03569781]
[1736982813892,0.74360257,713.65,712.51,2.03569781]
[1736982814086,0.74360257,713.64,712.51,2.03569781]
[1736982814290,0.74360257,713.63,712.51,2.03569781]
[1736982814491,0.74360257,713.62,712.51,2.03569781]
[1736982814786,0.74360257,713.61,712.51,2.03569781]
[1736982814990,0.74360257,713.6,712.51,2.03569781]
[1736982815291,0.74360257,713.59,712.51,2.03569781]
[1736982815491,0.74360257,713.58,712.51,2.03569781]
[1736982815692,0.74360257,713.57,712.51,2.03569781]
[1736982815885,0.74360257,713.56,712.51,2.03569781]
[1736982816090,0.74360257,713.55,712.51,2.03569781]
[1736982816292,0.74360257,713.54,712.51,2.03569781]
[1736982816493,0.74360257,713.53,712.51,2.03569781]
[1736982816791,0.74360257,713.52,712.51,2.03569781]
[1736982816987,0.74360257,713.51,712.51,2.03569781]
[1736982817190,0.74360257,713.5,712.51,2.03569781]
[1736982817386,0.74360257,713.49,712.51,2.03569781]
[1736982817591,0.74360257,713.48,712.51,2.03569781]
[1736982817892,0.74360257,713.47,712.51,2.03569781]
[1736982818094,0.74360257,713.46,712.51,2.03569781]
[1736982818294,0.74360257,713.45,712.51,2.03569781]
[1736982818593,0.74360257,713.44,712.51,2.03569781]
[1736982818791,1.04986071,713.75,712.51,2.03569781]
[1736982819292,0.25760457,713.74,712.51,2.03569781]
[1736982819694,0.25760457,713.73,712.51,2.03569781]
[1736982819992,0.28020623,713.76,712.51,2.03569781]
[1736982820191,0.25760768,713.75,712.51,2.03569781]
[1736982820394,0.28020623,713.76,712.51,2.03569781]
[1736982821089,0.74316192,713.75,712.51,2.03569781]
[1736982821396,1.00065865,713.74,712.51,2.03569781]
[1736982821696,1.00065865,713.73,712.51,2.03569781]
[1736982821896,0.74305826,713.72,712.51,2.03569781]
[1736982822195,0.74305826,713.71,712.51,2.03569781]
[1736982822393,0.74305826,713.7,712.51,2.03569781]
[1736982822593,0.74305826,713.69,712.51,2.03569781]
[1736982822793,0.74297857,713.68,712.51,2.03569781]
[1736982822994,0.74297857,713.67,712.51,2.03569781]
[1736982823189,0.74297857,713.66,712.51,2.03569781]
[1736982823390,0.74297857,713.65,712.51,2.03569781]
[1736982823695,0.74297857,713.64,712.51,2.03569781]
[1736982823899,0.74297857,713.63,712.51,2.03569781]
[1736982824195,0.74297857,713.62,712.51,2.03569781]
[1736982824395,0.74297857,713.61,712.51,2.03569781]
[1736982824595,0.74297857,713.6,712.51,2.03569781]
[1736982824796,0.74297857,713.59,712.51,2.03569781]
[1736982824993,0.74297857,713.58,712.51,2.03569781]
[1736982825193,0.74297857,713.57,712.51,2.03569781]
[1736982825395,0.74297857,713.56,712.51,2.03569781]
[1736982825595,0.74297857,713.55,712.51,2.03569781]
[1736982825792,0.74297857,713.54,712.51,2.03569781]
[1736982825995,0.74297857,713.53,712.51,2.03569781]
[1736982826190,0.74297857,713.52,712.51,2.03569781]
[1736982826394,0.74297857,713.51,712.51,2.03569781]
[1736982826595,0.74297857,713.5,712.51,2.03569781]
[1736982826900,0.74297857,713.49,712.51,2.03569781]
[1736982827197,0.74297857,713.48,712.51,2.03569781]
[1736982827391,0.74297857,713.47,712.51,2.03569781]
[1736982827591,0.74297857,713.46,712.51,2.03569781]
[1736982827891,0.74297857,713.45,712.51,2.03569781]
[1736982828096,0.74297857,713.44,712.51,2.03569781]
[1736982828297,0.74297857,713.43,712.51,2.03569781]
[1736982828499,0.74198324,713.42,712.51,2.03569781]
[1736982828799,0.74198324,713.41,712.51,2.03569781]
[1736982828999,0.74198324,713.4,712.51,2.03569781]
[1736982829200,0.74198324,713.39,712.51,2.03569781]
[1736982829499,0.74198324,713.38,712.51,2.03569781]
[1736982829799,0.74198324,713.37,712.51,2.03569781]
[1736982829999,0.74198324,713.36,712.51,2.03569781]
[1736982830199,0.74198324,713.35,712.51,2.03569781]
[1736982830399,0.28020623,713.76,712.51,2.03569781]
[1736982830600,0.74178737,713.75,712.51,2.03569781]
[1736982830796,0.74178737,713.74,712.51,2.03569781]
[1736982830997,0.74178737,713.73,712.51,2.03569781]
[1736982831195,0.74178737,713.72,712.51,2.03569781]
[1736982831502,0.74178737,713.71,712.51,2.03569781]
[1736982831803,0.74178737,713.7,712.51,2.03569781]
[1736982831998,0.74178737,713.69,712.51,2.03569781]
[1736982832199,0.74178737,713.68,712.51,2.03569781]
[1736982832397,0.74178737,713.67,712.51,2.03569781]
[1736982832699,0.74178737,713.66,712.51,2.03569781]
[1736982832900,0.74178737,713.65,712.51,2.03569781]
[1736982833100,0.74178737,713.64,712.51,2.03569781]
[1736982833302,0.74178737,713.63,712.51,2.03569781]
[1736982833501,0.74178737,713.62,712.51,2.03569781]
[1736982833800,0.74178737,713.61,712.51,2.03569781]
[1736982833999,0.74178737,713.6,712.51,2.03569781]
[1736982834201,0.74178737,713.59,712.51,2.03569781]
[1736982834400,0.74178737,713.58,712.51,2.03569781]
[1736982834599,0.74178737,713.57,712.51,2.03569781]
[1736982834901,0.74178737,713.56,712.51,2.03569781]
[1736982835101,0.74178737,713.55,712.51,2.03569781]
[1736982835301,0.74178737,713.54,712.51,2.03569781]
[1736982835598,0.74178737,713.53,712.51,2.03569781]
[1736982835900,0.74178737,713.52,712.51,2.03569781]
[1736982836094,0.74178737,713.51,712.51,2.03569781]
[1736982836298,0.74178737,713.5,712.51,2.03569781]
[1736982836501,0.74178737,713.49,712.51,2.03569781]
[1736982836799,0.74139529,713.48,712.51,2.03569781]
[1736982837001,0.74139529,713.47,712.51,2.03569781]
[1736982837201,0.74139529,713.46,712.51,2.03569781]
[1736982837394,0.74139529,713.45,712.51,2.03569781]
[1736982837599,0.74139529,713.44,712.51,2.03569781]
[1736982837800,0.74139529,713.43,712.51,2.03569781]